[Event "*** Titled Tuesday Blitz"]
[Site "Chess.com"]
[Date "2020.12.29"]
[Round "2"]
[White "jacky72"]
[Black "geordie_derraugh"]
[Result "1-0"]
[WhiteElo "2810"]
[BlackElo "2529"]
[TimeControl "180+1"]
[EndTime "10:19:09 PST"]
[Termination "jacky72 won on time"]

1. d4 {[%clk 0:03:00.9]} 1... Nf6 {[%clk 0:02:59.5]} 2. c4 {[%clk 0:03:01.3]}
2... e6 {[%clk 0:02:59.9]} 3. Nf3 {[%clk 0:03:00.9]} 3... Bb4+ {[%clk
0:02:59.8]} 4. Bd2 {[%clk 0:03:00.8]} 4... a5 {[%clk 0:02:59.7]} 5. Nc3 {[%clk
0:02:57]} 5... b6 {[%clk 0:02:59]} 6. e3 {[%clk 0:02:57.4]} 6... Bb7 {[%clk
0:02:58.4]} 7. Bd3 {[%clk 0:02:57.7]} 7... O-O {[%clk 0:02:55.9]} 8. O-O {[%clk
0:02:58.1]} 8... d6 {[%clk 0:02:54.5]} 9. Re1 {[%clk 0:02:52.7]} 9... Nbd7
{[%clk 0:02:53.2]} 10. e4 {[%clk 0:02:49.8]} 10... e5 {[%clk 0:02:52.8]} 11. a3
{[%clk 0:02:48.5]} 11... Bxc3 {[%clk 0:02:51.7]} 12. Bxc3 {[%clk 0:02:49.4]}
12... exd4 {[%clk 0:02:40.6]} 13. Nxd4 {[%clk 0:02:48.7]} 13... Nc5 {[%clk
0:02:34.8]} 14. f3 {[%clk 0:02:49]} 14... a4 {[%clk 0:02:27.7]} 15. Bc2 {[%clk
0:02:48]} 15... Ba6 {[%clk 0:02:23.6]} 16. Bd3 {[%clk 0:02:11.8]} 16... Re8
{[%clk 0:02:18.7]} 17. Bf1 {[%clk 0:02:11.4]} 17... Nfd7 {[%clk 0:01:57.9]} 18.
Qd2 {[%clk 0:02:06.2]} 18... Ne5 {[%clk 0:01:55.4]} 19. Nf5 {[%clk 0:02:05.4]}
19... Ne6 {[%clk 0:01:28.9]} 20. Ne3 {[%clk 0:01:57.6]} 20... Qg5 {[%clk
0:01:21.1]} 21. Kh1 {[%clk 0:01:46.7]} 21... Nc5 {[%clk 0:01:15.9]} 22. Rad1
{[%clk 0:01:44.1]} 22... Nb3 {[%clk 0:01:05]} 23. Qf2 {[%clk 0:01:43.9]} 23...
Bb7 {[%clk 0:00:56.7]} 24. f4 {[%clk 0:01:43.2]} 24... Ng4 {[%clk 0:00:36.8]}
25. Qg3 {[%clk 0:01:42.9]} 25... Qg6 {[%clk 0:00:20.3]} 26. f5 {[%clk
0:01:32.1]} 26... Qg5 {[%clk 0:00:18.6]} 27. Nxg4 {[%clk 0:01:32.4]} 27... Bxe4
{[%clk 0:00:16.3]} 28. f6 {[%clk 0:01:32.7]} 28... h5 {[%clk 0:00:11.3]} 29. Nf2
{[%clk 0:01:28.7]} 29... Qxg3 {[%clk 0:00:10.6]} 30. hxg3 {[%clk 0:01:29.6]}
30... Bf5 {[%clk 0:00:09]} 31. fxg7 {[%clk 0:01:29.5]} 31... Nc5 {[%clk
0:00:08.1]} 32. Be2 {[%clk 0:01:21.6]} 32... Bg6 {[%clk 0:00:06.4]} 33. Bf3
{[%clk 0:01:21.5]} 33... Rad8 {[%clk 0:00:05.9]} 34. Bc6 {[%clk 0:01:22]} 34...
Rxe1+ {[%clk 0:00:05.6]} 35. Rxe1 {[%clk 0:01:22.9]} 35... Ne6 {[%clk
0:00:06.2]} 36. Nh3 {[%clk 0:01:14.9]} 36... Nxg7 {[%clk 0:00:06.2]} 37. Re7
{[%clk 0:01:14.7]} 37... Nf5 {[%clk 0:00:05]} 38. Rxc7 {[%clk 0:01:14.3]} 38...
Nxg3+ {[%clk 0:00:05.3]} 39. Kh2 {[%clk 0:01:14.5]} 39... Ne2 {[%clk 0:00:05.2]}
40. Bf6 {[%clk 0:01:10.2]} 40... Rb8 {[%clk 0:00:05]} 41. Ng5 {[%clk 0:01:09.7]}
41... Nf4 {[%clk 0:00:04.7]} 42. g3 {[%clk 0:00:59.2]} 42... Nd3 {[%clk
0:00:04.7]} 43. Bd5 {[%clk 0:00:50.5]} 43... Rf8 {[%clk 0:00:04.6]} 44. Be7
{[%clk 0:00:37.6]} 44... Re8 {[%clk 0:00:04.8]} 45. Bc6 {[%clk 0:00:31.4]} 45...
Rb8 {[%clk 0:00:04.3]} 46. Bxd6 {[%clk 0:00:31.7]} 46... Nxb2 {[%clk 0:00:04.2]}
47. Bd5 {[%clk 0:00:29.5]} 47... Rd8 {[%clk 0:00:03.4]} 48. Nxf7 {[%clk
0:00:27.4]} 48... Bxf7 {[%clk 0:00:03.9]} 49. Rxf7 {[%clk 0:00:27.6]} 49... Rxd6
{[%clk 0:00:02.2]} 50. Rf6+ {[%clk 0:00:20.3]} 50... Rxd5 {[%clk 0:00:02.5]} 51.
cxd5 {[%clk 0:00:21.2]} 51... Nc4 {[%clk 0:00:02.2]} 52. Rc6 {[%clk 0:00:21.3]}
52... Nxa3 {[%clk 0:00:01.4]} 53. Rxb6 {[%clk 0:00:20.6]} 53... Kf7 {[%clk
0:00:01.3]} 54. Ra6 {[%clk 0:00:20.2]} 54... Nc4 {[%clk 0:00:01.7]} 55. Rxa4
{[%clk 0:00:20.4]} 55... Ne3 {[%clk 0:00:01.9]} 56. Rf4+ {[%clk 0:00:08.2]}
56... Kg6 {[%clk 0:00:01.3]} 57. d6 {[%clk 0:00:07.7]} 1-0

[Event "*** Titled Tuesday Blitz"]
[Site "Chess.com"]
[Date "2020.12.29"]
[Round "2"]
[White "NeverW84M8"]
[Black "Sergienko_Sergey"]
[Result "1-0"]
[WhiteElo "2502"]
[BlackElo "2309"]
[TimeControl "180+1"]
[EndTime "10:19:10 PST"]
[Termination "NeverW84M8 won by resignation"]

1. d4 {[%clk 0:03:00.9]} 1... Nf6 {[%clk 0:02:59.1]} 2. c4 {[%clk 0:03:01.2]}
2... c5 {[%clk 0:02:58.3]} 3. d5 {[%clk 0:03:01.3]} 3... e5 {[%clk 0:02:58.3]}
4. Nc3 {[%clk 0:03:01.3]} 4... d6 {[%clk 0:02:57.9]} 5. e4 {[%clk 0:03:01.8]}
5... Be7 {[%clk 0:02:58]} 6. g3 {[%clk 0:03:01]} 6... Nbd7 {[%clk 0:02:56.6]} 7.
Bg2 {[%clk 0:03:00.4]} 7... O-O {[%clk 0:02:56.5]} 8. Nf3 {[%clk 0:02:59.9]}
8... Ne8 {[%clk 0:02:55.8]} 9. O-O {[%clk 0:02:59.8]} 9... g6 {[%clk 0:02:55.8]}
10. Ne1 {[%clk 0:03:00.1]} 10... Ng7 {[%clk 0:02:53.2]} 11. Nd3 {[%clk
0:02:59.2]} 11... f5 {[%clk 0:02:42.4]} 12. f4 {[%clk 0:02:57.6]} 12... Bf6
{[%clk 0:02:41.3]} 13. exf5 {[%clk 0:02:54.9]} 13... gxf5 {[%clk 0:02:31.9]} 14.
Rb1 {[%clk 0:02:44]} 14... e4 {[%clk 0:02:27.2]} 15. Ne1 {[%clk 0:02:39.8]}
15... a6 {[%clk 0:02:23.5]} 16. Nc2 {[%clk 0:02:35.5]} 16... b5 {[%clk
0:02:12.3]} 17. cxb5 {[%clk 0:02:30.9]} 17... axb5 {[%clk 0:02:11.9]} 18. Nxb5
{[%clk 0:02:31.3]} 18... Qb6 {[%clk 0:02:11.7]} 19. Nba3 {[%clk 0:02:28]} 19...
Ba6 {[%clk 0:02:00]} 20. Re1 {[%clk 0:02:27.7]} 20... Rfb8 {[%clk 0:01:41.9]}
21. Bf1 {[%clk 0:02:27.3]} 21... Bxf1 {[%clk 0:01:31.8]} 22. Kxf1 {[%clk
0:02:26.9]} 22... Qa6+ {[%clk 0:01:17.2]} 23. Qe2 {[%clk 0:02:24.4]} 23... Nb6
{[%clk 0:01:13.9]} 24. Qxa6 {[%clk 0:02:16.2]} 24... Rxa6 {[%clk 0:01:13.4]} 25.
Rd1 {[%clk 0:02:16.4]} 25... Kf7 {[%clk 0:01:04]} 26. Ne3 {[%clk 0:02:02.3]}
26... Kg6 {[%clk 0:01:02]} 27. b3 {[%clk 0:01:55]} 27... Ne8 {[%clk 0:00:57.3]}
28. Rd2 {[%clk 0:01:51.1]} 28... Nc7 {[%clk 0:00:56.3]} 29. Nac4 {[%clk
0:01:49.1]} 29... Bd4 {[%clk 0:00:48.7]} 30. Bb2 {[%clk 0:01:22.4]} 30... Nxc4
{[%clk 0:00:40]} 31. Nxc4 {[%clk 0:01:18.4]} 31... Rxa2 {[%clk 0:00:37.2]} 32.
Bc1 {[%clk 0:01:05.1]} 32... Rxd2 {[%clk 0:00:34.2]} 33. Bxd2 {[%clk 0:01:04.3]}
33... Nb5 {[%clk 0:00:25.6]} 34. Ba5 {[%clk 0:01:01.2]} 34... Kf6 {[%clk
0:00:22.7]} 35. Nxd6 {[%clk 0:00:53.6]} 35... Nxd6 {[%clk 0:00:21.5]} 36. Bc7
{[%clk 0:00:53.8]} 36... Rb7 {[%clk 0:00:17.3]} 37. Bxd6 {[%clk 0:00:53.9]}
37... Rd7 {[%clk 0:00:17.3]} 38. Bf8 {[%clk 0:00:47.2]} 38... Rxd5 {[%clk
0:00:16.8]} 39. b4 {[%clk 0:00:44.2]} 39... c4 {[%clk 0:00:14.9]} 40. b5 {[%clk
0:00:44.6]} 40... Rd8 {[%clk 0:00:14.6]} 41. Ba3 {[%clk 0:00:29.3]} 41... Rb8
{[%clk 0:00:14.3]} 42. Ke2 {[%clk 0:00:28.9]} 42... Ke6 {[%clk 0:00:14.4]} 43.
Rb4 {[%clk 0:00:27]} 43... Kd5 {[%clk 0:00:14.1]} 44. b6 {[%clk 0:00:20.9]}
44... Bc5 {[%clk 0:00:13.7]} 45. Rb5 {[%clk 0:00:21.1]} 45... Rxb6 {[%clk
0:00:12.4]} 46. Rxc5+ {[%clk 0:00:20.1]} 46... Kd4 {[%clk 0:00:12.8]} 47. Rc8
{[%clk 0:00:19.4]} 47... Rb3 {[%clk 0:00:12.9]} 48. Bc5+ {[%clk 0:00:18.9]}
48... Kd5 {[%clk 0:00:12.2]} 49. Be3 {[%clk 0:00:19.1]} 49... Rb2+ {[%clk
0:00:12.1]} 50. Ke1 {[%clk 0:00:19.1]} 50... Rxh2 {[%clk 0:00:12.4]} 51. Rc5+
{[%clk 0:00:19.2]} 51... Ke6 {[%clk 0:00:11.4]} 52. Rxc4 {[%clk 0:00:18.8]}
52... h5 {[%clk 0:00:11.2]} 53. Rc6+ {[%clk 0:00:17.5]} 53... Ke7 {[%clk
0:00:09.7]} 54. Rh6 {[%clk 0:00:15.1]} 54... Kf7 {[%clk 0:00:09.4]} 55. Kf1
{[%clk 0:00:15.2]} 55... Kg7 {[%clk 0:00:09.4]} 56. Re6 {[%clk 0:00:14.5]} 56...
h4 {[%clk 0:00:08.8]} 57. gxh4 {[%clk 0:00:11.9]} 57... Rxh4 {[%clk 0:00:08.7]}
58. Bd4+ {[%clk 0:00:11.5]} 58... Kh7 {[%clk 0:00:07.1]} 59. Be5 {[%clk
0:00:11.6]} 59... Rh2 {[%clk 0:00:05.2]} 60. Rf6 {[%clk 0:00:11.6]} 60... e3
{[%clk 0:00:05]} 61. Rxf5 {[%clk 0:00:12]} 1-0

[Event "*** Titled Tuesday Blitz"]
[Site "Chess.com"]
[Date "2020.12.29"]
[Round "2"]
[White "garicradomir"]
[Black "yobdc"]
[Result "0-1"]
[WhiteElo "2271"]
[BlackElo "2466"]
[TimeControl "180+1"]
[EndTime "10:19:10 PST"]
[Termination "yobdc won by resignation"]

1. e4 {[%clk 0:03:00.9]} 1... c6 {[%clk 0:02:59.7]} 2. d4 {[%clk 0:02:59.4]}
2... d5 {[%clk 0:02:59.9]} 3. e5 {[%clk 0:02:59.9]} 3... Bf5 {[%clk 0:02:59.9]}
4. Bd3 {[%clk 0:02:57.4]} 4... Bxd3 {[%clk 0:02:59.5]} 5. Qxd3 {[%clk
0:02:58.3]} 5... e6 {[%clk 0:03:00]} 6. Ne2 {[%clk 0:02:53.9]} 6... Ne7 {[%clk
0:02:54.4]} 7. O-O {[%clk 0:02:49.5]} 7... c5 {[%clk 0:02:54.5]} 8. c3 {[%clk
0:02:49.1]} 8... Nbc6 {[%clk 0:02:43.6]} 9. Nd2 {[%clk 0:02:48]} 9... Nf5 {[%clk
0:02:38.2]} 10. Nf3 {[%clk 0:02:42.6]} 10... Be7 {[%clk 0:02:38.1]} 11. g4
{[%clk 0:02:40.5]} 11... Nh4 {[%clk 0:02:35.7]} 12. Nxh4 {[%clk 0:02:40.4]}
12... Bxh4 {[%clk 0:02:36.6]} 13. f4 {[%clk 0:02:40.6]} 13... Be7 {[%clk
0:02:23.9]} 14. f5 {[%clk 0:02:39.6]} 14... cxd4 {[%clk 0:02:19.7]} 15. cxd4
{[%clk 0:02:37.6]} 15... Qb6 {[%clk 0:02:17.6]} 16. Be3 {[%clk 0:02:28.6]} 16...
O-O-O {[%clk 0:02:00.8]} 17. Rac1 {[%clk 0:02:20.6]} 17... Kb8 {[%clk
0:01:59.5]} 18. a3 {[%clk 0:02:16.1]} 18... Rc8 {[%clk 0:01:38.2]} 19. b4 {[%clk
0:02:12.1]} 19... h6 {[%clk 0:01:29.3]} 20. Nf4 {[%clk 0:01:39.4]} 20... Bg5
{[%clk 0:01:26.1]} 21. Rc5 {[%clk 0:01:38.1]} 21... Bxf4 {[%clk 0:01:21.6]} 22.
Bxf4 {[%clk 0:01:37.8]} 22... Ne7 {[%clk 0:01:11.7]} 23. Rfc1 {[%clk 0:01:35.4]}
23... Rxc5 {[%clk 0:01:08.2]} 24. dxc5 {[%clk 0:01:29]} 24... Qd8 {[%clk
0:00:59.3]} 25. b5 {[%clk 0:01:17.9]} 25... Ka8 {[%clk 0:00:45.9]} 26. c6 {[%clk
0:01:08.9]} 26... bxc6 {[%clk 0:00:46.8]} 27. bxc6 {[%clk 0:01:05.4]} 27... Qc7
{[%clk 0:00:47]} 28. f6 {[%clk 0:00:56.5]} 28... gxf6 {[%clk 0:00:38.2]} 29. Qd4
{[%clk 0:00:36.1]} 29... f5 {[%clk 0:00:30.6]} 30. Qc5 {[%clk 0:00:30.3]} 30...
fxg4 {[%clk 0:00:24.2]} 31. Be3 {[%clk 0:00:26.8]} 31... Rc8 {[%clk 0:00:21.1]}
32. Qd6 {[%clk 0:00:27]} 32... Nf5 {[%clk 0:00:17.8]} 33. Qc5 {[%clk 0:00:24]}
33... h5 {[%clk 0:00:14.9]} 34. Bf2 {[%clk 0:00:23.4]} 34... h4 {[%clk
0:00:14.9]} 35. Rb1 {[%clk 0:00:23.3]} 35... g3 {[%clk 0:00:13.7]} 36. Rb7
{[%clk 0:00:09.7]} 36... gxf2+ {[%clk 0:00:13.6]} 37. Kxf2 {[%clk 0:00:10.6]}
37... Qxb7 {[%clk 0:00:11.2]} 38. cxb7+ {[%clk 0:00:11.5]} 38... Kxb7 {[%clk
0:00:11.5]} 39. Qb5+ {[%clk 0:00:11.2]} 39... Ka8 {[%clk 0:00:11.9]} 40. Qd7
{[%clk 0:00:10.2]} 40... Kb8 {[%clk 0:00:10.2]} 41. Qxf7 {[%clk 0:00:09.6]}
41... Rc2+ {[%clk 0:00:10]} 42. Kf3 {[%clk 0:00:09]} 42... Rxh2 {[%clk
0:00:09.5]} 43. Qe8+ {[%clk 0:00:07.9]} 43... Kb7 {[%clk 0:00:09.5]} 44. Qf7+
{[%clk 0:00:07.9]} 44... Kb8 {[%clk 0:00:09.8]} 45. Qe8+ {[%clk 0:00:07.8]}
45... Kb7 {[%clk 0:00:10.3]} 46. Qd7+ {[%clk 0:00:07.7]} 46... Kb8 {[%clk
0:00:08.5]} 47. Qd8+ {[%clk 0:00:06.9]} 47... Kb7 {[%clk 0:00:08.8]} 48. Qd7+
{[%clk 0:00:06.5]} 48... Kb8 {[%clk 0:00:09.3]} 49. Kf4 {[%clk 0:00:06.8]} 49...
Rf2+ {[%clk 0:00:08.8]} 50. Kg5 {[%clk 0:00:06.4]} 50... h3 {[%clk 0:00:08.1]}
51. Qe8+ {[%clk 0:00:05.4]} 51... Kb7 {[%clk 0:00:08.3]} 52. Qxe6 {[%clk
0:00:06.3]} 52... Nd4 {[%clk 0:00:07.7]} 53. Qd7+ {[%clk 0:00:06.1]} 53... Kb6
{[%clk 0:00:06.8]} 54. Qd6+ {[%clk 0:00:05.9]} 54... Nc6 {[%clk 0:00:06.9]} 55.
Qxd5 {[%clk 0:00:05.2]} 55... h2 {[%clk 0:00:06.4]} 56. Qb3+ {[%clk 0:00:04.9]}
56... Kc7 {[%clk 0:00:06.2]} 57. Qf7+ {[%clk 0:00:04.7]} 57... Rxf7 {[%clk
0:00:05.5]} 0-1

[Event "*** Titled Tuesday Blitz"]
[Site "Chess.com"]
[Date "2020.12.29"]
[Round "2"]
[White "TomasKapitanchuk"]
[Black "ZiggyStardust64"]
[Result "0-1"]
[WhiteElo "2436"]
[BlackElo "2691"]
[TimeControl "180+1"]
[EndTime "10:19:16 PST"]
[Termination "ZiggyStardust64 won by resignation"]

1. e4 {[%clk 0:03:00.9]} 1... e5 {[%clk 0:03:00.1]} 2. Nf3 {[%clk 0:03:01.3]}
2... Nc6 {[%clk 0:03:00.3]} 3. Bc4 {[%clk 0:03:01.9]} 3... Nf6 {[%clk
0:02:59.4]} 4. d3 {[%clk 0:03:02.3]} 4... d5 {[%clk 0:02:56.2]} 5. exd5 {[%clk
0:03:02.3]} 5... Nxd5 {[%clk 0:02:56.3]} 6. O-O {[%clk 0:03:02.9]} 6... Be7
{[%clk 0:02:46.9]} 7. h3 {[%clk 0:03:01.8]} 7... O-O {[%clk 0:02:45.6]} 8. Re1
{[%clk 0:03:02.3]} 8... Bf6 {[%clk 0:02:26.5]} 9. Nbd2 {[%clk 0:03:01]} 9... Bf5
{[%clk 0:02:16]} 10. Ne4 {[%clk 0:02:57.2]} 10... Re8 {[%clk 0:02:10.4]} 11.
Bxd5 {[%clk 0:02:53]} 11... Qxd5 {[%clk 0:02:08.6]} 12. Nxf6+ {[%clk 0:02:53.3]}
12... gxf6 {[%clk 0:02:09.5]} 13. Bh6 {[%clk 0:02:50.4]} 13... Bg6 {[%clk
0:01:56.7]} 14. Nd2 {[%clk 0:02:47.6]} 14... Qd4 {[%clk 0:01:42.6]} 15. Ne4
{[%clk 0:02:43.8]} 15... Re6 {[%clk 0:01:34.9]} 16. c3 {[%clk 0:02:37]} 16...
Qb6 {[%clk 0:01:24.6]} 17. Qf3 {[%clk 0:02:31.1]} 17... f5 {[%clk 0:01:21.9]}
18. Ng5 {[%clk 0:02:27.8]} 18... e4 {[%clk 0:01:12.1]} 19. dxe4 {[%clk
0:02:22.5]} 19... Ne5 {[%clk 0:01:12.1]} 20. Qg3 {[%clk 0:02:16.7]} 20... f4
{[%clk 0:01:12.2]} 21. Qxf4 {[%clk 0:02:07.8]} 21... Nd3 {[%clk 0:01:12]} 22.
Qh4 {[%clk 0:02:08.3]} 22... Rf6 {[%clk 0:00:51.1]} 23. Re3 {[%clk 0:01:58.4]}
23... Nxf2 {[%clk 0:00:50.4]} 24. Nf3 {[%clk 0:01:41.7]} 24... Nxe4 {[%clk
0:00:39.8]} 25. Kh1 {[%clk 0:01:39.7]} 25... Re8 {[%clk 0:00:34.1]} 26. Rae1
{[%clk 0:01:38.8]} 26... Rfe6 {[%clk 0:00:27.1]} 27. Nd4 {[%clk 0:01:34.7]}
27... Re5 {[%clk 0:00:27.3]} 28. Bf4 {[%clk 0:01:30.4]} 28... R5e7 {[%clk
0:00:27.3]} 29. Bg5 {[%clk 0:01:26.6]} 29... Re5 {[%clk 0:00:26.6]} 30. Bf4
{[%clk 0:01:27]} 30... R5e7 {[%clk 0:00:26.5]} 31. Kh2 {[%clk 0:01:16.8]} 31...
c5 {[%clk 0:00:26.3]} 32. Nb3 {[%clk 0:01:14.1]} 32... Qc6 {[%clk 0:00:24.6]}
33. Bh6 {[%clk 0:01:04.9]} 33... Qd6+ {[%clk 0:00:23.4]} 34. Kg1 {[%clk
0:01:04.4]} 34... f5 {[%clk 0:00:20.5]} 35. Bf4 {[%clk 0:01:02.1]} 35... Qc6
{[%clk 0:00:18.3]} 36. Nd2 {[%clk 0:00:58.2]} 36... Rg7 {[%clk 0:00:17.7]} 37.
Nf3 {[%clk 0:00:56.2]} 37... Bf7 {[%clk 0:00:16.2]} 38. Ne5 {[%clk 0:00:53.3]}
38... Qe6 {[%clk 0:00:15.9]} 39. Nd3 {[%clk 0:00:52]} 39... b6 {[%clk
0:00:15.5]} 40. Be5 {[%clk 0:00:50]} 40... Rg6 {[%clk 0:00:14.8]} 41. Bf4 {[%clk
0:00:50.3]} 41... Rg7 {[%clk 0:00:14.9]} 42. Ne5 {[%clk 0:00:50.5]} 42... Bg6
{[%clk 0:00:12.3]} 43. Nf3 {[%clk 0:00:50.1]} 43... Bf7 {[%clk 0:00:12.1]} 44.
Ng5 {[%clk 0:00:50.2]} 44... Qg6 {[%clk 0:00:12]} 45. R1e2 {[%clk 0:00:41.7]}
45... Nxg5 {[%clk 0:00:11.1]} 46. Rxe8+ {[%clk 0:00:40.8]} 46... Bxe8 {[%clk
0:00:12]} 47. Bxg5 {[%clk 0:00:41.2]} 47... Bf7 {[%clk 0:00:11.8]} 48. Bf6
{[%clk 0:00:39.5]} 48... Qh5 {[%clk 0:00:10.2]} 49. Qf4 {[%clk 0:00:34.4]} 49...
Qxe2 {[%clk 0:00:08.9]} 50. Bxg7 {[%clk 0:00:27.7]} 50... Kxg7 {[%clk
0:00:09.8]} 51. Qxf5 {[%clk 0:00:26.7]} 51... Qe1+ {[%clk 0:00:09.1]} 52. Kh2
{[%clk 0:00:27]} 52... Qe6 {[%clk 0:00:09.5]} 53. Qg5+ {[%clk 0:00:27.1]} 53...
Bg6 {[%clk 0:00:09.8]} 54. Qd8 {[%clk 0:00:27.2]} 54... a5 {[%clk 0:00:09.9]}
55. Qc7+ {[%clk 0:00:26.9]} 55... Kf6 {[%clk 0:00:10.3]} 56. Qf4+ {[%clk
0:00:26.6]} 56... Qf5 {[%clk 0:00:10.3]} 57. Qd6+ {[%clk 0:00:27]} 57... Qe6
{[%clk 0:00:11.2]} 58. Qd8+ {[%clk 0:00:26.9]} 58... Kf5 {[%clk 0:00:11.2]} 59.
g4+ {[%clk 0:00:25.4]} 59... Ke4 {[%clk 0:00:11.3]} 60. Kg3 {[%clk 0:00:23.4]}
60... Qe5+ {[%clk 0:00:11.4]} 61. Kg2 {[%clk 0:00:23.9]} 61... Qd5 {[%clk
0:00:11.2]} 62. Qe7+ {[%clk 0:00:22.4]} 62... Kd3+ {[%clk 0:00:11.5]} 63. Kg3
{[%clk 0:00:19.7]} 63... Kc2 {[%clk 0:00:12]} 64. Qe2+ {[%clk 0:00:19.2]} 64...
Qd2 {[%clk 0:00:12]} 65. Qb5 {[%clk 0:00:18.8]} 65... Qd3+ {[%clk 0:00:12]} 66.
Qxd3+ {[%clk 0:00:19.3]} 66... Bxd3 {[%clk 0:00:12.7]} 67. b4 {[%clk 0:00:16.9]}
67... cxb4 {[%clk 0:00:12.2]} 68. cxb4 {[%clk 0:00:17.8]} 68... axb4 {[%clk
0:00:12.3]} 0-1

[Event "*** Titled Tuesday Blitz"]
[Site "Chess.com"]
[Date "2020.12.29"]
[Round "2"]
[White "Heineccius"]
[Black "BrandonJacobson"]
[Result "0-1"]
[WhiteElo "2587"]
[BlackElo "2931"]
[TimeControl "180+1"]
[EndTime "10:19:17 PST"]
[Termination "BrandonJacobson won by resignation"]

1. d4 {[%clk 0:03:00.9]} 1... d5 {[%clk 0:02:59.1]} 2. c4 {[%clk 0:03:00.8]}
2... e6 {[%clk 0:02:58.5]} 3. Nc3 {[%clk 0:03:00.6]} 3... h6 {[%clk 0:02:58.3]}
4. e3 {[%clk 0:02:57.9]} 4... Nf6 {[%clk 0:02:57.5]} 5. Bd3 {[%clk 0:02:57.7]}
5... a6 {[%clk 0:02:56.7]} 6. b3 {[%clk 0:02:53.5]} 6... c5 {[%clk 0:02:56.8]}
7. Nf3 {[%clk 0:02:45]} 7... Nc6 {[%clk 0:02:56.2]} 8. O-O {[%clk 0:02:42.9]}
8... dxc4 {[%clk 0:02:52.1]} 9. Bxc4 {[%clk 0:02:38.7]} 9... b5 {[%clk
0:02:49.3]} 10. Be2 {[%clk 0:02:37.8]} 10... cxd4 {[%clk 0:02:40.8]} 11. exd4
{[%clk 0:02:37.3]} 11... Bb7 {[%clk 0:02:41.2]} 12. Be3 {[%clk 0:02:32.9]} 12...
Bd6 {[%clk 0:02:33.2]} 13. Rc1 {[%clk 0:02:31.8]} 13... O-O {[%clk 0:02:25.5]}
14. a4 {[%clk 0:02:25.4]} 14... b4 {[%clk 0:02:22.2]} 15. Nb1 {[%clk 0:02:25.9]}
15... Nd5 {[%clk 0:02:15.8]} 16. Nfd2 {[%clk 0:02:19.5]} 16... Nxe3 {[%clk
0:01:51.4]} 17. fxe3 {[%clk 0:02:18.5]} 17... Qg5 {[%clk 0:01:52.1]} 18. Bf3
{[%clk 0:01:59.5]} 18... Qxe3+ {[%clk 0:01:47.5]} 19. Kh1 {[%clk 0:01:59.6]}
19... Na5 {[%clk 0:01:13.9]} 20. Nc4 {[%clk 0:01:37.2]} 20... Nxc4 {[%clk
0:01:06.2]} 21. Bxb7 {[%clk 0:01:31.6]} 21... Ra7 {[%clk 0:01:02.4]} 22. Bxa6
{[%clk 0:01:17.5]} 22... Nb2 {[%clk 0:01:01.3]} 23. Qe2 {[%clk 0:01:14.6]} 23...
Qxd4 {[%clk 0:00:54.4]} 24. Rc2 {[%clk 0:01:03.3]} 24... Rxa6 {[%clk 0:00:37.1]}
25. Qxa6 {[%clk 0:00:31.5]} 25... Nd3 {[%clk 0:00:36.7]} 26. Rd2 {[%clk
0:00:20.2]} 26... Qe5 {[%clk 0:00:36.8]} 27. g3 {[%clk 0:00:18]} 27... Qe4+
{[%clk 0:00:32.4]} 28. Rg2 {[%clk 0:00:18.5]} 28... Ne1 {[%clk 0:00:32.7]} 29.
Qe2 {[%clk 0:00:17.5]} 29... Qxg2+ {[%clk 0:00:32.4]} 30. Qxg2 {[%clk
0:00:18.4]} 30... Nxg2 {[%clk 0:00:33.3]} 31. Kxg2 {[%clk 0:00:17]} 31... Rc8
{[%clk 0:00:33.5]} 32. Rd1 {[%clk 0:00:17.1]} 32... Be5 {[%clk 0:00:17.2]} 33.
Nd2 {[%clk 0:00:17.1]} 33... Rc2 {[%clk 0:00:14.5]} 34. Kf3 {[%clk 0:00:17.5]}
34... Rb2 {[%clk 0:00:12]} 35. Ke4 {[%clk 0:00:16.5]} 35... Bc3 {[%clk
0:00:12.3]} 36. Nc4 {[%clk 0:00:16.8]} 36... Rxb3 {[%clk 0:00:07.8]} 37. a5
{[%clk 0:00:17.3]} 37... f5+ {[%clk 0:00:08.4]} 38. Kd3 {[%clk 0:00:14.3]} 38...
Bf6+ {[%clk 0:00:08.7]} 39. Ke2 {[%clk 0:00:13.5]} 39... Rc3 {[%clk 0:00:09.2]}
40. Nb6 {[%clk 0:00:10.2]} 40... Ra3 {[%clk 0:00:08.9]} 41. Nc4 {[%clk
0:00:09.8]} 41... Ra2+ {[%clk 0:00:09.4]} 42. Kf3 {[%clk 0:00:08.7]} 42... b3
{[%clk 0:00:08.9]} 43. Rd7 {[%clk 0:00:08.9]} 43... b2 {[%clk 0:00:08.8]} 44.
Rb7 {[%clk 0:00:09.2]} 44... Bc3 {[%clk 0:00:09.1]} 45. Rb8+ {[%clk 0:00:08.9]}
45... Kh7 {[%clk 0:00:09]} 46. Ke3 {[%clk 0:00:09.4]} 46... Bxa5 {[%clk
0:00:08.7]} 47. Kd3 {[%clk 0:00:09.4]} 47... Bc7 {[%clk 0:00:07.5]} 48. Rb7
{[%clk 0:00:08.5]} 48... b1=Q+ {[%clk 0:00:08.4]} 49. Rxb1 {[%clk 0:00:06.9]}
49... Rxh2 {[%clk 0:00:09]} 50. Rb7 {[%clk 0:00:07.2]} 50... Bxg3 {[%clk
0:00:09.2]} 51. Ke3 {[%clk 0:00:05.4]} 51... Bh4 {[%clk 0:00:09.4]} 52. Kf4
{[%clk 0:00:05.3]} 52... Bf6 {[%clk 0:00:09.6]} 53. Kg3 {[%clk 0:00:05.6]} 53...
Rh4 {[%clk 0:00:09.9]} 54. Nd6 {[%clk 0:00:05.8]} 54... Rg4+ {[%clk 0:00:09.8]}
55. Kf3 {[%clk 0:00:05.6]} 55... h5 {[%clk 0:00:10.4]} 56. Ne8 {[%clk
0:00:05.5]} 56... Kg6 {[%clk 0:00:10.8]} 57. Rb6 {[%clk 0:00:05.4]} 57... Re4
{[%clk 0:00:08.8]} 58. Nc7 {[%clk 0:00:05.5]} 58... Kf7 {[%clk 0:00:08]} 59. Rb7
{[%clk 0:00:05.9]} 59... Be7 {[%clk 0:00:08.4]} 60. Nb5 {[%clk 0:00:05.4]} 60...
Kf6 {[%clk 0:00:08.9]} 61. Nc3 {[%clk 0:00:05]} 61... Rc4 {[%clk 0:00:08.6]} 62.
Ne2 {[%clk 0:00:05.9]} 62... g5 {[%clk 0:00:08.4]} 63. Ng3 {[%clk 0:00:05.9]}
63... h4 {[%clk 0:00:08.7]} 64. Kg2 {[%clk 0:00:06.5]} 64... hxg3 {[%clk
0:00:08.8]} 0-1